bitfinex-derivatives/quotes_ETHF0:USTF0_20240917
["timestamp","ask_amount","ask_price","bid_price","bid_amount"]
[1726565158128,1.25,2306.2,2306.1,0.3919]
[1726565158433,1.25,2306.4,2306.1,0.3919]
[1726565160058,1.25,2306.3,2306.1,0.3919]
[1726565160432,0.3996,2306.2,2306.1,0.3919]
[1726565161523,3.2078,2306.6,2306.1,15.1857]
[1726565161729,3.2078,2306.6,2306.2,1.25]
[1726565161931,3.2078,2306.6,2306.4,1.25]
[1726565162236,3.2078,2306.6,2306.5,0.795]
[1726565169740,3.2078,2306.6,2306.5,5.1302]
[1726565170037,1.6396,2306.8,2306.5,0.795]
[1726565170827,3.6204,2306.9,2306.5,2.045]
[1726565170828,4.4578,2306.9,2306.5,2.045]
[1726565171233,1.25,2306.9,2306.5,2.045]
[1726565172037,1.25,2306.7,2306.5,0.3828]
[1726565172338,1.25,2306.7,2306.4,3.2078]
[1726565172549,1.25,2306.5,2306.4,3.6216]
[1726565172935,0.3232139,2306.5,2306.4,3.6216]
[1726565173334,0.3232139,2306.5,2306.4,4.0117]
[1726565173546,0.4233,2306.6,2306.4,4.0117]
[1726565173838,1.25,2306.7,2306.4,4.0117]
[1726565174627,1.25,2306.7,2306.4,0.8039]
[1726565185050,1.25,2306.7,2306.5,3.2078]
[1726565186553,2.0859,2306.8,2306.5,3.2078]
[1726565189256,2.0859,2306.8,2306.4,0.8039]
[1726565189849,2.0859,2306.8,2306.4,4.0117]
[1726565190549,2.0859,2306.8,2306.4,0.8039]
[1726565190850,2.0859,2306.8,2306.4,4.0117]
[1726565195152,0.8359,2306.8,2306.4,4.0117]
[1726565199360,0.4233,2306.8,2306.4,4.0117]
[1726565200456,0.4233,2306.8,2306.4,0.8039]
[1726565200662,0.4233,2306.8,2306.4,4.0117]
[1726565207564,0.4233,2306.8,2306.5,3.2078]
[1726565209561,1.25,2306.9,2306.5,3.2078]
[1726565210569,1.6588,2307.0,2306.5,3.2078]
[1726565211364,1.6588,2307.0,2306.5,4.34547812]
[1726565212167,1.6588,2307.0,2306.6,1.13767812]
[1726565212468,1.6588,2307.0,2306.7,0.4225]
[1726565212670,1.6588,2307.0,2306.8,0.3849]
[1726565212861,1.25,2307.0,2306.8,0.3849]
[1726565213067,3.2078,2307.1,2306.8,0.3849]
[1726565214773,1.25,2307.2,2306.8,3.5927]
[1726565215072,1.25,2306.9,2306.8,0.3849]
[1726565219465,0.4075,2307.0,2306.8,0.3849]
[1726565219672,0.3945,2307.1,2306.8,0.3849]
[1726565219873,3.2078,2307.2,2306.8,0.3849]
[1726565220863,3.2078,2307.2,2306.9,1.25]
[1726565221278,3.2078,2307.2,2307.0,0.4191]
[1726565221471,3.2078,2307.2,2307.1,0.423]
[1726565224771,0.101,2307.6,2307.1,6.0074]
[1726565224967,1.25,2307.6,2307.3,3.2078]
[1726565225165,1.25,2307.6,2307.2,3.2078]
[1726565225370,1.25,2307.6,2307.3,0.4125]
[1726565225572,1.6447,2307.6,2307.3,0.4125]
[1726565227774,1.6447,2307.6,2307.3,0.8333]
[1726565228179,0.3947,2307.6,2307.3,0.8333]
[1726565228475,1.6447,2307.6,2307.3,0.8333]
[1726565232882,2.0278,2307.6,2307.3,0.8333]
[1726565235782,0.7778,2307.6,2307.3,0.8333]
[1726565236089,1.351,2307.8,2307.3,2.0833]
[1726565236283,0.3858,2307.6,2307.3,0.8333]
[1726565237689,0.3858,2307.6,2307.3,4.0411]
[1726565240986,0.3858,2307.6,2307.3,0.8333]
[1726565241685,0.3858,2307.6,2307.3,4.0411]
[1726565242787,0.3858,2307.6,2307.3,5.2911]
[1726565250897,0.3858,2307.6,2307.3,4.0411]
[1726565251197,0.3858,2307.6,2307.3,5.2911]
[1726565257395,0.3858,2307.6,2307.3,2.0833]
[1726565257793,0.3858,2307.6,2307.3,5.2911]
[1726565258899,0.3858,2307.6,2307.3,2.0833]
[1726565259095,0.3858,2307.6,2307.3,5.2911]
[1726565263791,0.3858,2307.6,2307.3,2.0833]
[1726565263997,0.3858,2307.6,2307.3,5.2911]
[1726565264603,1.25,2307.4,2307.0,2.83959149]
[1726565264816,9.5936,2307.6,2306.8,0.7958]
[1726565264817,4.4578,2307.2,2306.8,0.7958]
[1726565265003,1.25,2306.9,2306.8,0.7958]
[1726565265911,0.8163,2307.3,2306.8,8.3388]
[1726565266102,0.8163,2307.3,2306.9,1.25]
[1726565267003,3.616,2307.5,2307.2,1.25]
[1726565267208,3.616,2307.5,2307.3,0.7864]
[1726565267403,3.2078,2307.5,2307.3,2.4182]
[1726565269508,1.25,2307.7,2307.3,2.4182]
[1726565269913,1.25,2307.7,2307.3,1.1682]
[1726565271606,1.25,2307.7,2307.3,4.376]
[1726565275708,1.638,2307.8,2307.3,5.626]
[1726565278003,1.25,2307.7,2307.3,4.376]
[1726565278314,0.3892,2307.6,2307.3,1.1682]
[1726565278512,0.3839,2307.5,2307.3,1.1682]
[1726565279106,1.6339,2307.5,2307.3,1.1682]
[1726565280015,0.3839,2307.5,2307.3,1.1682]
[1726565280213,1.25,2307.7,2307.3,1.1682]
[1726565280624,1.25,2307.7,2307.3,4.376]
[1726565280818,1.25,2307.7,2307.3,1.1682]
[1726565281910,1.25,2307.7,2307.3,4.376]
[1726565284024,1.2005,2307.8,2307.3,4.376]
[1726565284025,2.4505,2307.8,2307.3,4.376]
[1726565286123,0.8072,2307.8,2307.3,5.626]
[1726565286321,0.4192,2307.8,2307.3,6.76367812]
[1726565289020,1.6692,2307.8,2307.3,5.626]
[1726565289216,1.6692,2307.8,2307.3,2.4182]
[1726565289421,0.3913,2307.7,2307.3,1.1682]
[1726565289723,2.0465,2307.7,2307.3,1.1682]
[1726565293023,2.0465,2307.7,2307.3,4.376]
[1726565293425,2.0465,2307.7,2307.3,1.1682]
[1726565293630,1.25,2307.5,2307.3,1.1682]
[1726565293821,0.3901,2307.4,2307.3,0.7864]
[1726565296722,6.3662,2307.4,2307.0,0.4071]
[1726565297028,2.4453,2307.4,2307.1,0.4036]
[1726565299431,1.25,2307.2,2307.1,0.4036]
[1726565300527,2.4453,2307.4,2307.1,0.4036]
[1726565303427,1.08357,2307.3,2307.1,0.83705]
[1726565303628,0.43344,2307.2,2307.1,0.83705]
[1726565304030,0.43344,2307.2,2307.1,0.83706]
[1726565304230,0.43344,2307.2,2307.1,0.4036]
[1726565304630,0.43344,2307.2,2307.1,0.83706]
[1726565313640,0.43343,2307.3,2307.2,0.43342]
[1726565314455,0.43343,2307.3,2307.1,0.83705]
[1726565314456,0.43344,2307.2,2307.1,0.83705]
[1726565314746,1.6711,2307.3,2307.0,0.3943]
[1726565315048,0.43349,2307.0,2306.9,0.43348]
[1726565315639,0.43349,2307.0,2306.9,0.82558]
[1726565319946,0.43347,2307.1,2307.0,0.43346]
[1726565320145,0.43347,2307.1,2307.0,0.84416]
[1726565322548,3.64125,2307.2,2307.1,0.43346]
[1726565323051,3.64125,2307.2,2307.1,0.84726]
[1726565323345,3.2078,2307.2,2307.1,0.84726]
[1726565323538,3.64124,2307.2,2307.1,0.84726]
[1726565327040,0.43344,2307.2,2307.1,0.84726]
[1726565332052,2.76705,2307.2,2307.1,0.84726]
[1726565332252,0.43346,2307.1,2307.0,0.84417]
[1726565332452,0.83966,2307.1,2307.0,0.84417]
[1726565332854,1.92332,2307.1,2307.0,0.84417]
[1726565333156,0.43348,2307.0,2306.9,0.4221]
[1726565333355,0.43352,2306.8,2306.7,0.81863]
[1726565333548,0.43352,2306.8,2306.7,1.22223]
[1726565335660,0.43351,2306.9,2306.8,0.4335]
[1726565335859,0.43351,2306.9,2306.8,0.8299]
[1726565340360,0.4335,2307.0,2306.9,0.43348]
[1726565340557,0.43348,2307.1,2307.0,0.43346]
[1726565340752,0.43346,2307.2,2307.1,0.43344]
[1726565340963,0.43346,2307.2,2307.1,0.81524]
[1726565343263,1.51707,2307.2,2307.1,0.3818]
[1726565343463,0.43346,2307.1,2307.0,0.83667]
[1726565343668,2.06536,2307.1,2307.0,0.83667]
[1726565346973,2.06536,2307.1,2307.0,0.43347]
[1726565347266,2.06536,2307.1,2306.8,3.2078]
[1726565347267,0.4335,2307.0,2306.9,0.43349]
[1726565350573,1.90081,2307.0,2306.9,0.43349]
[1726565350770,0.4335,2306.9,2306.8,0.43351]
[1726565350971,0.8282,2306.9,2306.8,0.43351]
[1726565353078,0.43353,2306.8,2306.7,0.43352]
[1726565353865,0.43353,2306.8,2306.7,3.83981917]
[1726565354569,0.4335,2306.9,2306.8,0.43352]
[1726565354770,0.4335,2306.9,2306.8,6.88053398]
[1726565355273,0.4335,2306.9,2306.8,7.28073398]
[1726565355472,0.4335,2306.9,2306.8,2.36854818]
[1726565358777,0.4335,2306.9,2306.8,7.28076382]
[1726565359778,0.4335,2306.9,2306.8,4.07296382]
[1726565360171,0.4335,2306.9,2306.8,2.36854818]
[1726565360977,0.4335,2306.9,2306.8,1.23132]
[1726565364081,0.84039,2307.0,2306.9,0.4335]
[1726565364276,0.84039,2307.0,2306.9,0.8248]
[1726565364579,0.43349,2307.0,2306.9,0.8248]
[1726565365375,1.5172,2307.0,2306.9,0.8248]
[1726565367087,0.4335,2306.9,2306.8,1.23131]
[1726565369583,0.4335,2306.9,2306.8,2.36853818]
[1726565373384,0.4335,2306.9,2306.8,1.23131]
[1726565375789,0.4335,2306.9,2306.8,2.36853818]
[1726565376192,0.4335,2306.9,2306.8,1.23131]
[1726565376489,0.4335,2306.9,2306.8,2.36853818]
[1726565379582,0.4335,2306.9,2306.8,1.23131]
[1726565379783,0.8485,2306.9,2306.8,2.36853818]
[1726565380090,0.8485,2306.9,2306.8,1.23131]
[1726565383997,0.8485,2306.9,2306.8,0.43351]
[1726565386194,0.4335,2306.9,2306.8,0.43351]
[1726565386893,0.82469,2307.0,2306.9,0.4335]
[1726565387891,1.9084,2307.0,2306.9,0.4335]
[1726565394093,0.82469,2307.0,2306.9,0.4335]
[1726565401898,0.43349,2307.0,2306.9,0.4335]
[1726565404912,0.43349,2307.0,2306.6,0.43355]
[1726565404913,0.43355,2306.7,2306.6,0.43355]
[1726565405404,0.8273,2306.7,2306.6,0.43355]
[1726565405805,0.43356,2306.6,2306.5,0.43356]
[1726565406002,2.07356,2306.6,2306.5,0.43356]
[1726565406204,2.07356,2306.6,2306.5,2.1385684]
[1726565407905,2.07356,2306.6,2306.5,0.43356]
[1726565408106,2.07356,2306.6,2306.5,1.70434686]
[1726565408312,2.07356,2306.6,2306.4,1.70745359]
[1726565408313,1.51751,2306.5,2306.4,1.70745359]
[1726565408611,0.43361,2306.3,2306.2,0.43362]
[1726565408811,1.68361,2306.3,2306.2,2.54602899]
[1726565409314,1.68361,2306.3,2306.2,0.4081]
[1726565409510,1.68361,2306.3,2306.2,0.84173]
[1726565410006,0.43363,2306.2,2306.0,0.43366]
[1726565410211,6.10383,2306.2,2306.0,0.84276]
[1726565410612,0.43365,2306.1,2306.0,0.84276]
[1726565410914,6.10384,2306.2,2306.0,0.84276]
[1726565411109,6.10384,2306.2,2306.0,0.4091]
[1726565411412,6.10384,2306.2,2306.0,0.84276]
[1726565412113,4.4202,2306.2,2306.1,0.43365]
[1726565412415,3.2078,2306.2,2306.1,1.68365]
[1726565413114,3.2078,2306.2,2306.1,2.06885]
[1726565413315,3.2078,2306.2,2306.1,4.18308924]
[1726565414317,0.3948,2306.5,2306.4,0.43359]
[1726565414515,3.2078,2306.6,2306.5,0.43357]
[1726565414720,0.85255,2306.7,2306.6,0.43356]
[1726565414912,2.73256,2306.9,2306.8,0.43352]
[1726565414913,0.3988,2306.9,2306.8,0.43352]
[1726565415106,0.202,2307.1,2307.0,0.43347]
[1726565415107,0.43346,2307.1,2307.0,0.43347]
[1726565416209,0.43346,2307.1,2306.9,0.43348]
[1726565416510,0.43346,2307.1,2307.0,0.43348]
[1726565417417,0.202,2307.4,2307.3,0.43342]
[1726565417611,0.3988,2307.5,2307.4,0.4334]
[1726565417817,3.2078,2307.6,2307.5,0.43339]
[1726565418023,3.2078,2307.6,2307.5,1.68339]
[1726565418417,3.2078,2307.6,2307.5,0.82209]
[1726565419518,3.2078,2307.6,2307.5,0.3887]
[1726565419723,4.4578,2307.6,2307.5,0.3887]
[1726565419918,3.2078,2307.6,2307.5,0.82209]
[1726565425015,3.64117,2307.6,2307.5,0.82209]
[1726565425814,3.2078,2307.6,2307.5,0.82209]
[1726565427024,3.64117,2307.6,2307.5,0.82209]
[1726565428116,3.2078,2307.6,2307.5,0.82209]
[1726565429625,3.64117,2307.6,2307.5,0.82209]
[1726565431828,3.2078,2307.6,2307.5,0.82209]
[1726565432328,3.64117,2307.6,2307.5,0.82209]
[1726565433022,3.2078,2307.6,2307.5,0.82209]
[1726565433223,0.43334,2307.8,2307.7,0.43333]
[1726565434017,4.06192,2307.9,2307.8,0.43333]
[1726565434521,3.6286,2307.9,2307.8,0.43333]
[1726565434721,0.43331,2307.9,2307.8,0.43333]
[1726565434933,0.409,2308.0,2307.9,0.43331]
[1726565434934,0.84231,2308.0,2307.9,0.43331]
[1726565435428,0.43329,2308.0,2307.9,3.64111]
[1726565435626,0.4035,2308.2,2307.9,3.2078]
[1726565435828,0.83677,2308.2,2308.1,0.43327]
[1726565438135,0.83675,2308.2,2308.1,0.43327]
[1726565438428,0.4035,2308.2,2308.1,0.43327]
[1726565438731,0.85115,2308.3,2308.2,0.43325]
[1726565439628,0.43326,2308.2,2308.1,0.43326]
[1726565439827,0.85115,2308.3,2308.2,0.43325]
[1726565440318,0.43325,2308.3,2308.2,0.43325]
[1726565441535,0.4156,2308.4,2308.3,0.43324]
[1726565441720,0.84882,2308.4,2308.3,0.43324]
[1726565443829,0.4156,2308.4,2308.3,1.68324]
[1726565444027,4.05841,2308.5,2308.4,0.43322]
[1726565444433,3.6252,2308.5,2308.4,0.43322]
[1726565444631,4.0584,2308.5,2308.4,0.43322]
[1726565445027,0.3831,2308.6,2308.5,0.4332]
[1726565445831,0.81628,2308.6,2308.5,0.4332]
[1726565447135,0.43322,2308.4,2308.3,1.26232]
[1726565447430,0.81629,2308.6,2308.5,0.4332]
[1726565451241,0.43321,2308.5,2308.4,0.4332]
[1726565451530,0.84691,2308.5,2308.4,0.4332]
[1726565454035,0.4137,2308.5,2308.4,0.4332]
[1726565454832,0.8469,2308.5,2308.4,0.4332]
[1726565462937,0.43324,2308.3,2308.2,3.64104]
[1726565463542,0.84014,2308.3,2308.2,3.64104]
[1726565464540,0.84014,2308.3,2308.0,0.43327]
[1726565464541,0.43329,2308.1,2308.0,0.43327]
[1726565467947,4.45457,2308.2,2308.1,0.43327]
[1726565468148,8.78737,2308.2,2308.1,0.43327]
[1726565468341,4.45457,2308.2,2308.1,0.43327]
[1726565468540,8.78737,2308.2,2308.1,0.43327]
[1726565469340,0.43328,2308.1,2308.0,0.43327]
[1726565472542,1.51653,2308.0,2307.9,0.3975]
[1726565472756,1.51653,2308.0,2307.8,0.3976]
[1726565472757,0.43333,2307.8,2307.7,0.3855]
[1726565473046,0.43337,2307.6,2307.5,0.3855]
[1726565473548,2.08515,2307.7,2307.5,0.3855]
[1726565473750,0.83515,2307.7,2307.6,0.43337]
[1726565473944,0.4018,2307.7,2307.6,0.43337]
[1726565474353,0.83515,2307.7,2307.6,0.43337]
[1726565474942,0.83515,2307.7,2307.5,0.3855]
[1726565474943,0.83515,2307.7,2307.5,0.81887]
[1726565475258,0.83515,2307.7,2307.4,0.4334]
[1726565475259,0.4334,2307.5,2307.4,0.4334]
[1726565475459,1.25,2307.5,2307.2,0.8114]
[1726565475653,1.25,2307.5,2307.2,0.43344]
[1726565475654,0.43343,2307.3,2307.2,0.43344]
[1726565476050,0.84413,2307.3,2307.1,0.43345]
[1726565476251,0.84413,2307.3,2307.2,0.43344]
[1726565476552,0.4107,2307.3,2307.2,0.43344]
[1726565476749,0.84412,2307.3,2307.2,0.43344]
[1726565477462,0.4107,2307.3,2307.2,0.43344]
[1726565478459,0.84412,2307.3,2307.2,0.43344]
[1726565483961,0.4107,2307.3,2307.2,0.43344]
[1726565484280,0.84412,2307.3,2307.2,0.43344]
[1726565484562,0.4107,2307.3,2307.2,0.43344]
[1726565485358,0.84412,2307.3,2307.2,0.43344]
[1726565489855,0.4107,2307.3,2307.2,0.43344]
[1726565490164,0.84412,2307.3,2307.2,0.43344]
[1726565492462,0.43342,2307.3,2307.2,0.43344]
[1726565492862,0.85182,2307.4,2307.3,0.43342]
[1726565494759,0.4184,2307.4,2307.3,0.43342]
[1726565495064,0.8196,2307.5,2307.4,0.4334]
[1726565495565,3.2078,2307.8,2307.7,0.43335]
[1726565495955,4.72446,2307.8,2307.7,0.43335]
[1726565496171,3.64113,2307.8,2307.7,0.43335]
[1726565500372,2.33329,2307.9,2307.8,0.43333]
[1726565500373,1.68333,2307.9,2307.8,0.43333]
[1726565501468,1.51666,2307.8,2307.7,0.43334]
[1726565501670,4.72446,2307.8,2307.7,0.43334]
[1726565501968,0.43335,2307.7,2307.6,0.82875]
[1726565502279,0.85095,2307.7,2307.6,0.82875]
[1726565505565,0.85095,2307.7,2307.6,0.43335]
[1726565506069,0.43338,2307.6,2307.5,0.43337]
[1726565506269,1.22698,2307.6,2307.5,0.43337]
[1726565506479,0.7936,2307.6,2307.5,0.43337]
[1726565507967,0.3886,2307.6,2307.5,0.43337]
[1726565508368,0.85096,2307.7,2307.6,0.43337]
[1726565508569,4.05876,2307.7,2307.6,0.43337]
[1726565511273,0.85096,2307.7,2307.6,0.43337]
[1726565511474,4.05876,2307.7,2307.6,0.43337]
[1726565512472,0.85096,2307.7,2307.6,0.43337]
[1726565512678,4.05876,2307.7,2307.6,0.43337]
[1726565513575,3.6254,2307.7,2307.6,0.43337]
[1726565514383,4.05875,2307.7,2307.6,0.43337]
[1726565518591,3.64115,2307.7,2307.6,0.43337]
[1726565518877,3.64115,2307.7,2307.6,1.5168]
[1726565518878,3.2078,2307.7,2307.6,1.5168]
[1726565519083,0.81714,2307.8,2307.7,0.43335]
[1726565519482,0.81714,2307.8,2307.7,0.84165]
[1726565520379,1.90047,2307.8,2307.7,0.84165]
[1726565523786,0.81714,2307.8,2307.7,0.84165]
[1726565523986,3.40280825,2308.2,2308.1,0.43327]
[1726565524175,3.9921,2308.3,2308.1,1.68327]
[1726565524374,4.42535,2308.3,2308.2,0.43325]
[1726565524575,4.42535,2308.3,2308.2,0.81625]
[1726565525076,4.42535,2308.3,2308.2,0.383]
[1726565525077,5.50845,2308.3,2308.2,0.383]
[1726565525276,5.91395,2308.3,2308.2,0.383]
[1726565525878,4.83085,2308.3,2308.2,0.81625]
[1726565527383,4.83085,2308.3,2308.2,0.383]
[1726565527879,4.83085,2308.3,2308.2,0.81625]
[1726565528077,5.91395,2308.3,2308.2,0.383]
[1726565528286,4.83085,2308.3,2308.2,0.81625]
[1726565528472,4.83085,2308.3,2308.2,0.383]
[1726565528671,4.83085,2308.3,2308.2,0.81625]
[1726565529584,0.43323,2308.4,2308.3,0.43322]
[1726565535083,3.2078,2308.6,2308.3,5.582]
[1726565535287,0.43318,2308.7,2308.6,0.43317]
[1726565535592,4.07903825,2308.8,2308.7,0.43316]
[1726565535593,1.64365,2308.8,2308.7,0.43316]
[1726565535792,4.85145,2308.8,2308.7,0.43316]
[1726565536295,0.43316,2308.7,2308.6,1.64527]
[1726565540390,0.43316,2308.7,2308.6,1.64526]
[1726565541084,4.85145,2308.8,2308.7,0.43316]
[1726565541387,4.85145,2308.8,2308.6,1.2121]
[1726565541388,0.43313,2308.9,2308.6,3.54505]
[1726565541593,0.43313,2308.9,2308.8,0.43313]
[1726565542198,0.3958,2309.0,2308.9,0.43312]
[1726565542697,0.3958,2309.0,2308.9,0.85522]
[1726565543296,0.81859,2309.1,2309.0,0.4331]
[1726565543697,4.02639,2309.1,2309.0,0.4331]
[1726565545085,3.2078,2309.1,2309.0,0.4331]
[1726565545287,3.2078,2309.1,2309.0,1.2377]
[1726565545688,1.22886,2309.3,2309.2,0.43307]
[1726565546401,1.22886,2309.3,2309.2,0.82567]
[1726565547995,5.55926,2309.3,2308.6,1.08292]
[1726565548331,0.43314,2308.9,2308.8,0.43314]
[1726565549003,0.43314,2308.9,2308.7,1.6656]
[1726565549004,0.43314,2308.8,2308.7,2.09875]
[1726565549200,3.64094,2308.8,2308.7,0.84875]
[1726565549694,4.04174,2308.8,2308.7,0.84875]
[1726565550396,4.04174,2308.8,2308.7,0.43315]
[1726565553004,0.83394,2308.8,2308.7,0.43315]
[1726565556192,0.83394,2308.8,2308.7,1.68315]
[1726565556595,0.43314,2308.8,2308.7,1.68315]
[1726565557703,3.64094,2308.8,2308.7,1.68315]
[1726565560007,0.43314,2308.8,2308.7,1.68315]
[1726565560404,3.64094,2308.8,2308.7,1.68315]
[1726565566311,0.43314,2308.8,2308.7,1.68315]
[1726565566511,3.64094,2308.8,2308.7,1.68315]
[1726565568618,3.2078,2308.8,2308.7,2.76606]
[1726565569008,0.43313,2308.9,2308.8,0.43314]
[1726565570015,1.51595,2308.9,2308.8,0.43314]
[1726565570213,0.43313,2308.9,2308.8,0.43314]
[1726565571508,0.43313,2308.9,2308.7,0.43315]
[1726565571509,0.43316,2308.8,2308.7,0.43315]
[1726565571712,0.43316,2308.7,2308.6,0.85316]
[1726565571913,1.65426,2308.7,2308.6,0.85316]
[1726565572515,1.2211,2308.7,2308.6,0.85316]
[1726565572715,1.2211,2308.7,2308.6,2.10316]
[1726565573219,1.65426,2308.7,2308.6,2.10316]
[1726565573416,0.8123,2308.7,2308.6,2.10316]
[1726565573617,3.64096,2308.8,2308.7,0.43316]
[1726565578429,3.2078,2308.8,2308.7,2.76607]
[1726565578617,0.43314,2308.9,2308.8,0.43312]
[1726565578818,0.43312,2308.9,2308.8,0.84812]
[1726565579921,3.64092,2308.9,2308.8,0.84812]
[1726565580526,0.43316,2308.8,2308.7,0.43314]
[1726565580724,1.51602,2308.8,2308.7,0.43314]
[1726565580923,0.43316,2308.7,2308.6,0.85317]
[1726565581120,0.84086,2308.7,2308.6,0.85317]
[1726565584332,0.84086,2308.7,2308.6,0.85318]
[1726565588118,0.84086,2308.7,2308.6,2.10318]
[1726565589532,0.43316,2308.7,2308.6,2.10318]
[1726565590525,0.43316,2308.8,2308.7,0.43315]
[1726565591626,0.43316,2308.8,2308.7,1.68315]
[1726565591832,3.64094,2308.9,2308.8,0.43314]
[1726565592327,3.64094,2308.9,2308.8,0.81624]
[1726565593329,0.43314,2308.8,2308.7,1.68315]
[1726565593633,0.43316,2308.7,2308.6,1.67]
[1726565594129,0.43316,2308.7,2308.6,4.7512]
[1726565594335,0.43316,2308.7,2308.6,6.0012]
[1726565594535,0.101,2309.3,2308.6,15.209]
[1726565594834,0.81878,2309.2,2309.1,0.43309]
[1726565595025,4.02657,2309.2,2309.0,1.68309]
[1726565595227,3.5935,2309.2,2309.1,0.43309]
[1726565598027,3.5935,2309.2,2309.0,1.68309]
[1726565598234,0.43309,2309.1,2308.9,0.43312]
[1726565598433,0.7711,2309.0,2308.8,0.43312]
[1726565598639,0.7711,2309.0,2308.8,0.43314]
[1726565598640,1.20421,2309.0,2308.8,0.43314]
[1726565598844,0.83122,2308.9,2308.7,0.43315]
[1726565599039,0.3981,2308.9,2308.7,0.43315]
[1726565600136,0.3981,2308.9,2308.8,0.43314]
[1726565600433,0.3981,2308.9,2308.8,1.68314]
[1726565603232,0.3981,2308.9,2308.8,0.43314]
[1726565608440,0.3981,2308.9,2308.7,1.25]
[1726565608747,0.3981,2308.9,2308.8,0.43314]
[1726565612854,3.64088,2309.2,2308.8,1.25]
[1726565613048,0.4138,2309.1,2309.0,0.43309]
[1726565614458,0.4138,2309.1,2309.0,1.68309]
[1726565614654,3.2078,2309.2,2309.1,0.43309]
[1726565616057,3.64087,2309.2,2309.1,0.43309]
[1726565616258,3.64087,2309.2,2309.0,1.25]
[1726565616259,0.43309,2309.1,2309.0,0.43309]
[1726565616453,3.2078,2309.2,2309.1,0.43309]
[1726565616454,3.64088,2309.2,2309.1,0.43309]
[1726565616757,3.64088,2309.2,2308.9,2.4407]
[1726565616758,3.2078,2309.2,2309.0,0.43309]
[1726565616963,3.64089,2309.2,2309.0,0.43309]
[1726565617349,3.64089,2309.2,2309.1,0.43309]
[1726565617859,3.2078,2309.2,2309.1,0.43309]
[1726565618158,0.335,2309.8,2309.2,1.08267]
[1726565618159,3.3088,2309.6,2309.2,1.08267]
[1726565618358,3.2078,2309.6,2309.5,1.68301]
[1726565621162,3.2078,2309.6,2309.5,2.08451]
[1726565621457,0.3957,2310.0,2309.9,0.43294]
[1726565621656,0.3957,2310.0,2309.9,1.68294]
[1726565622272,0.3936,2310.2,2310.0,0.4329]
[1726565622567,1.66108,2310.2,2310.1,1.6829]
[1726565623463,0.82648,2310.2,2310.1,1.25]
[1726565623859,0.82648,2310.2,2310.0,0.8418]
[1726565624579,0.4329,2310.1,2310.0,0.8418]
[1726565624765,1.25075,2310.4,2310.2,0.43288]
[1726565624963,1.66765,2310.4,2310.2,0.43288]
[1726565625569,0.43283,2310.5,2310.3,0.43286]
[1726565625765,0.4328,2310.7,2310.5,0.43282]
[1726565625958,0.4328,2310.7,2310.4,0.83923]
[1726565625959,0.4328,2310.6,2310.4,0.83923]
[1726565626164,0.4328,2310.6,2310.5,0.43282]
[1726565626674,3.2078,2310.9,2310.5,2.7]
[1726565627075,3.2078,2310.9,2310.4,3.6142]
[1726565627076,3.2078,2310.9,2310.8,0.43277]
[1726565627466,3.2078,2310.9,2310.8,0.4085]
[1726565627662,3.2078,2310.9,2310.8,0.84127]
[1726565628169,3.2078,2310.9,2310.8,1.24447]
[1726565628865,3.2078,2310.9,2310.8,1.63417]
[1726565630869,3.64055,2310.9,2310.8,0.8117]
[1726565631076,3.2078,2310.9,2310.5,3.0984]
[1726565631273,3.6039,2310.9,2310.6,0.4328]
[1726565631479,3.6039,2310.9,2310.5,3.0984]
[1726565631480,3.2078,2310.9,2310.5,3.0984]
[1726565631674,0.43278,2310.8,2310.6,0.4328]
[1726565631865,0.43278,2310.8,2310.7,0.43279]
[1726565632070,3.64056,2310.9,2310.8,0.43277]
[1726565632279,3.64056,2310.9,2310.7,3.13278]
[1726565632474,3.2078,2310.9,2310.7,3.13278]
[1726565632668,3.64056,2310.9,2310.7,3.13278]
[1726565632871,0.43277,2310.8,2310.7,3.13278]
[1726565633280,3.2078,2310.9,2310.7,2.7]
[1726565633477,3.2078,2310.9,2310.8,0.85527]
[1726565633676,3.64055,2310.9,2310.8,1.25837]
[1726565634582,3.64055,2310.9,2310.8,0.8256]
[1726565634975,0.43277,2310.8,2310.7,2.7]
[1726565635378,1.24037,2310.8,2310.6,1.25839]
[1726565635575,0.4018,2310.7,2310.3,2.7]
[1726565635777,0.4018,2310.7,2310.5,3.13281]
[1726565636088,0.4328,2310.6,2310.5,3.13281]
[1726565636582,0.4328,2310.6,2310.5,2.7]
[1726565637288,1.51482,2310.6,2310.5,2.7]
[1726565637478,1.51482,2310.6,2310.1,3.13289]
[1726565637479,1.08211,2310.4,2310.1,3.13289]
[1726565637973,0.83468,2310.3,2310.1,3.13289]
[1726565638178,0.83468,2310.3,2310.1,2.7]
[1726565638380,0.43288,2310.2,2310.1,2.7]
[1726565638779,0.43288,2310.2,2310.1,3.1329]
[1726565639381,0.43288,2310.2,2310.1,2.7]
[1726565640186,10.3288,2310.2,2309.5,0.101]
[1726565640489,0.43298,2309.7,2309.5,0.4197]
[1726565640788,0.5064,2310.1,2309.6,2.7]
[1726565640999,0.82904,2309.9,2309.5,0.4197]
[1726565641176,0.82904,2309.9,2309.5,0.85271]
[1726565641177,0.3961,2309.9,2309.5,0.85271]
[1726565641380,4.03684,2309.9,2309.5,0.4197]
[1726565642305,3.6039,2309.9,2309.5,0.4197]